[Event "elllobregat Open-A 2019"]
[Site "El Prat de Llobregat"]
[Date "2019.12.04"]
[Round "2.12"]
[White "Sidhant, Mohapatra"]
[Black "Asis Gargatagli, Hipolito"]
[Result "1/2-1/2"]
[ECO "B13"]
[WhiteElo "2338"]
[BlackElo "2497"]
[Annotator "ChessBase"]
[PlyCount "40"]
[EventDate "2019.12.03"]
[EventType "swiss"]
[EventCountry "ESP"]
[SourceTitle "playchess.com"]
[Source "ChessBase"]
[SourceQuality "1"]
[TimeControl "40/5400+30:1800+30"]

1. e4 {[%emt 0:00:00]} c6 {[%emt 0:02:24]} 2. d4 {[%emt 0:00:39]} d5 {[%emt 0:00:09]} 3. exd5 cxd5 {[%emt 0:00:06]} 4. c4 {[%emt 0:01:10]} Nf6 {[%emt 0:00:32]} 5. Nc3 {[%emt 0:00:08]} Nc6 {[%emt 0:02:02]} 6. Bg5 {[%emt 0:00:41]} Be6 {[%emt 0:01:27]} 7. Be2 {[%emt 0:00:27]} Qa5 {[%emt 0:01:42]} 8. Bf3 {[%emt 0:02:42]} O-O-O {[%emt 0:30:42]} 9. Bxf6 {[%emt 0:17:30]} exf6 {[%emt 0:19:53]} 10. cxd5 {[%emt 0:02:51]} Bxd5 {[%emt 0:00:07]} 11. Bxd5 {[%emt 0:00:48]} Rxd5 {[%emt 0:00:06]} 12. Nge2 {[%emt 0:00:08]} Rd7 {[%emt 0:14:12]} 13. O-O {[%emt 0:02:21]} Bd6 {[%emt 0:00:15]} 14. d5 {[%emt 0:01:43]} Ne7 {[%emt 0:03:49]} 15. a3 {[%emt 0:04:06]} Kb8 {[%emt 0:00:41]} 16. b4 {[%emt 0:00:20]} Qa6 {[%emt 0:00:12]} 17. Qb3 {[%emt 0:05:21]} Rc8 {[%emt 0:02:21]} 18. Rfd1 {[%emt 0:00:51]} f5 {[%emt 0:01:05]} 19. Rac1 {[%emt 0:04:54]} Rdd8 20. g3 {[%emt 0:02:41]} h5 {[%emt 0:10:40]} 1/2-1/2

[Event "elllobregat Open-A 2019"]
[Site "El Prat de Llobregat"]
[Date "2019.12.04"]
[Round "2.14"]
[White "Divya Deshmukh"]
[Black "Zanan, Evgeny"]
[Result "0-1"]
[ECO "C92"]
[WhiteElo "2332"]
[BlackElo "2493"]
[Annotator "ChessBase"]
[PlyCount "128"]
[EventDate "2019.12.03"]
[EventType "swiss"]
[EventCountry "ESP"]
[SourceTitle "playchess.com"]
[Source "ChessBase"]
[SourceQuality "1"]
[TimeControl "40/5400+30:1800+30"]

1. e4 e5 {[%emt 0:00:00]} 2. Nf3 {[%emt 0:03:44]} Nc6 {[%emt 0:00:00]} 3. Bb5 {[%emt 0:00:02]} a6 {[%emt 0:00:00]} 4. Ba4 {[%emt 0:00:04]} Nf6 {[%emt 0:00:00]} 5. O-O {[%emt 0:00:06]} Be7 {[%emt 0:00:00]} 6. Re1 {[%emt 0:00:20]} b5 {[%emt 0:00:02]} 7. Bb3 {[%emt 0:00:01]} d6 {[%emt 0:00:06]} 8. c3 {[%emt 0:00:07]} O-O {[%emt 0:00:06]} 9. h3 {[%emt 0:00:23]} Bb7 {[%emt 0:00:06]} 10. d4 {[%emt 0:01:25]} Re8 {[%emt 0:00:06]} 11. Ng5 {[%emt 0:06:40]} Rf8 {[%emt 0:00:15]} 12. Nf3 {[%emt 0:00:03]} h6 {[%emt 0:00:07]} 13. Nbd2 {[%emt 0:01:56]} Re8 {[%emt 0:00:25]} 14. Nf1 {[%emt 0:03:08]} Bf8 {[%emt 0:00:24]} 15. Ng3 {[%emt 0:00:49]} Na5 {[%emt 0:08:14]} 16. Bc2 {[%emt 0:03:03]} Nc4 {[%emt 0:00:49]} 17. b3 {[%emt 0:05:17]} Nb6 {[%emt 0:01:48]} 18. Ba3 {[%emt 0:05:21]} a5 {[%emt 0:07:33]} 19. Qd2 {[%emt 0:07:37]} c5 {[%emt 0:12:03]} 20. dxe5 {[%emt 0:15:31]} dxe5 {[%emt 0:00:19]} 21. Qxd8 {[%emt 0:00:49]} Raxd8 {[%emt 0:00:53]} 22. Rad1 {[%emt 0:01:02]} Rc8 {[%emt 0:01:24]} 23. Rd2 {[%emt 0:11:48]} b4 {[%emt 0:05:54]} 24. cxb4 c4 {[%emt 0:01:49]} 25. Rdd1 {[%emt 0:10:51]} axb4 {[%emt 0:01:41]} 26. Bc1 {[%emt 0:00:26]} c3 {[%emt 0:00:37]} 27. Be3 {[%emt 0:03:40]} Nbd7 {[%emt 0:02:09]} 28. Bd3 Nc5 {[%emt 0:02:25]} 29. Bxc5 {[%emt 0:02:09]} Bxc5 {[%emt 0:03:14]} 30. Bc4 {[%emt 0:02:05]} g6 {[%emt 0:04:07]} 31. Re2 {[%emt 0:03:31]} Ra8 {[%emt 0:05:10]} 32. Ne1 {[%emt 0:01:33]} Ba6 {[%emt 0:00:56]} 33. Bxa6 Rxa6 {[%emt 0:03:46]} 34. Kf1 {[%emt 0:08:31]} h5 {[%emt 0:04:40]} 35. h4 {[%emt 0:01:10]} Rea8 {[%emt 0:00:52]} 36. Nd3 {[%emt 0:02:49]} Rd6 {[%emt 0:00:34]} 37. Rc2 {[%emt 0:00:17]} Rad8 {[%emt 0:03:28]} 38. Ke2 {[%emt 0:00:07]} Ng4 {[%emt 0:00:52]} 39. Nf1 {[%emt 0:01:14]} f5 {[%emt 0:02:30]} 40. Rcc1 {[%emt 0:00:00]} Rxd3 {[%emt 0:00:00]} 41. Rxd3 {[%emt 0:00:46]} Rxd3 {[%emt 0:29:44]} 42. Kxd3 {[%emt 0:00:06]} Nxf2+ {[%emt 0:00:02]} 43. Kc2 {[%emt 0:05:38]} Nxe4 {[%emt 0:00:36]} 44. Nh2 {[%emt 0:06:30]} Nf2 {[%emt 0:12:39]} 45. Nf3 {[%emt 0:02:58]} Ng4 {[%emt 0:00:10]} 46. a4 {[%emt 0:03:13]} e4 47. Ng5 {[%emt 0:01:47]} Ne3+ {[%emt 0:03:11]} 48. Kb1 {[%emt 0:00:04]} Nxg2 {[%emt 0:00:11]} 49. Ne6 {[%emt 0:02:57]} Bb6 {[%emt 0:00:44]} 50. Rc2 {[%emt 0:01:15]} Nxh4 {[%emt 0:08:04]} 51. Ra2 {[%emt 0:02:05]} Nf3 {[%emt 0:01:52]} 52. a5 Ba7 {[%emt 0:01:03]} 53. Rg2 {[%emt 0:01:46]} Kf7 {[%emt 0:02:50]} 54. Nd8+ {[%emt 0:00:13]} Kf6 {[%emt 0:00:04]} 55. Nc6 {[%emt 0:00:26]} Bc5 {[%emt 0:00:00]} 56. a6 {[%emt 0:00:13]} h4 57. Nxb4 h3 {[%emt 0:00:24]} 58. Rg3 {[%emt 0:01:43]} h2 {[%emt 0:00:29]} 59. Rh3 {[%emt 0:00:03]} g5 60. Nd5+ {[%emt 0:02:42]} Ke5 {[%emt 0:04:38]} 61. b4 {[%emt 0:00:07]} Bf2 {[%emt 0:01:44]} 62. Ne7 {[%emt 0:01:33]} g4 {[%emt 0:00:32]} 63. Nc6+ {[%emt 0:05:21]} Kf4 {[%emt 0:00:39]} 64. a7 Bxa7 {[%emt 0:00:26]} 0-1

[Event "elllobregat Open-A 2019"]
[Site "El Prat de Llobregat"]
[Date "2019.12.04"]
[Round "2.15"]
[White "Erenberg, Ariel"]
[Black "Jerez Perez, Alfonso"]
[Result "1/2-1/2"]
[ECO "A05"]
[WhiteElo "2479"]
[BlackElo "2369"]
[Annotator "ChessBase"]
[PlyCount "102"]
[EventDate "2019.12.03"]
[EventType "swiss"]
[EventCountry "ESP"]
[SourceTitle "playchess.com"]
[Source "ChessBase"]
[SourceQuality "1"]
[TimeControl "40/5400+30:1800+30"]

1. Nf3 {[%emt 0:00:00]} Nf6 {[%emt 0:00:00]} 2. c4 {[%emt 0:00:00]} g6 {[%emt 0:00:04]} 3. Nc3 {[%emt 0:00:00]} d5 {[%emt 0:01:34]} 4. cxd5 Nxd5 {[%emt 0:00:03]} 5. h4 {[%emt 0:00:23]} h6 {[%emt 0:01:37]} 6. e4 {[%emt 0:01:24]} Nb6 {[%emt 0:02:09]} 7. d4 Bg7 {[%emt 0:00:07]} 8. Be3 {[%emt 0:01:49]} Bg4 {[%emt 0:01:02]} 9. Be2 {[%emt 0:03:52]} O-O {[%emt 0:05:52]} 10. Qd2 {[%emt 0:13:01]} h5 {[%emt 0:07:25]} 11. O-O-O {[%emt 0:12:33]} Nc6 {[%emt 0:10:52]} 12. d5 {[%emt 0:09:15]} Na5 {[%emt 0:12:21]} 13. Bd4 {[%emt 0:00:34]} Nac4 {[%emt 0:04:55]} 14. Bxc4 {[%emt 0:06:22]} Nxc4 {[%emt 0:02:02]} 15. Qd3 {[%emt 0:00:04]} e5 {[%emt 0:12:21]} 16. dxe6 {[%emt 0:02:54]} Bxe6 {[%emt 0:00:12]} 17. Ng5 {[%emt 0:03:53]} Qxd4 {[%emt 0:03:13]} 18. Qxd4 {[%emt 0:00:23]} Bxd4 {[%emt 0:00:08]} 19. Rxd4 {[%emt 0:00:07]} c5 {[%emt 0:00:54]} 20. Rd3 {[%emt 0:08:29]} Ne5 {[%emt 0:00:38]} 21. Rd6 c4 {[%emt 0:12:15]} 22. f3 {[%emt 0:03:21]} Rfd8 {[%emt 0:01:15]} 23. Rxd8+ {[%emt 0:04:12]} Rxd8 {[%emt 0:00:09]} 24. Nxe6 {[%emt 0:00:32]} fxe6 {[%emt 0:00:05]} 25. Rd1 {[%emt 0:00:34]} Nd3+ {[%emt 0:02:51]} 26. Kb1 {[%emt 0:01:04]} b5 {[%emt 0:05:18]} 27. Ne2 {[%emt 0:04:06]} Kf7 {[%emt 0:00:30]} 28. Nf4 {[%emt 0:03:32]} Rd7 {[%emt 0:03:29]} 29. Nxd3 {[%emt 0:06:57]} cxd3 {[%emt 0:00:09]} 30. e5 g5 {[%emt 0:01:02]} 31. hxg5 {[%emt 0:05:48]} Kg6 {[%emt 0:00:02]} 32. f4 {[%emt 0:02:58]} Kf5 {[%emt 0:00:06]} 33. g3 {[%emt 0:03:38]} Ke4 {[%emt 0:01:03]} 34. g6 Rg7 {[%emt 0:04:17]} 35. Re1+ {[%emt 0:02:58]} Kd4 {[%emt 0:01:56]} 36. Kc1 {[%emt 0:01:25]} Rxg6 {[%emt 0:00:17]} 37. f5 {[%emt 0:01:00]} Rxg3 {[%emt 0:01:08]} 38. fxe6 {[%emt 0:00:08]} Rg6 {[%emt 0:00:45]} 39. e7 Re6 {[%emt 0:00:41]} 40. Kd2 {[%emt 0:00:00]} Rxe7 41. e6 {[%emt 0:01:16]} a6 {[%emt 0:05:53]} 42. Re3 {[%emt 0:02:35]} Kd5 {[%emt 0:00:11]} 43. Rh3 {[%emt 0:00:37]} Rxe6 {[%emt 0:00:12]} 44. Rxh5+ {[%emt 0:00:07]} Kd4 {[%emt 0:00:07]} 45. Rh4+ {[%emt 0:00:50]} Re4 {[%emt 0:00:07]} 46. Rh2 {[%emt 0:01:27]} a5 {[%emt 0:00:10]} 47. Rf2 {[%emt 0:00:54]} a4 {[%emt 0:00:30]} 48. Rh2 {[%emt 0:00:39]} b4 {[%emt 0:00:34]} 49. Rf2 {[%emt 0:00:45]} a3 {[%emt 0:03:35]} 50. bxa3 {[%emt 0:02:27]} bxa3 {[%emt 0:00:09]} 51. Rh2 {[%emt 0:00:15]} Re2+ {[%emt 0:00:37]} 1/2-1/2

[Event "elllobregat Open-A 2019"]
[Site "El Prat de Llobregat"]
[Date "2019.12.04"]
[Round "2.16"]
[White "Karthik Venkataraman"]
[Black "Verstraeten, Rein"]
[Result "0-1"]
[ECO "B90"]
[WhiteElo "2470"]
[BlackElo "2365"]
[Annotator "ChessBase"]
[PlyCount "82"]
[EventDate "2019.12.03"]
[EventType "swiss"]
[EventCountry "ESP"]
[SourceTitle "playchess.com"]
[Source "ChessBase"]
[SourceQuality "1"]
[TimeControl "40/5400+30:1800+30"]

1. Nc3 {[%emt 0:00:00]} c5 {[%emt 0:01:04]} 2. Nf3 {[%emt 0:00:00]} a6 3. e4 d6 {[%emt 0:00:54]} 4. d4 {[%emt 0:03:19]} cxd4 {[%emt 0:00:04]} 5. Nxd4 {[%emt 0:00:03]} Nf6 {[%emt 0:00:05]} 6. Bd3 {[%emt 0:00:02]} e5 {[%emt 0:01:15]} 7. Nde2 Be7 {[%emt 0:06:55]} 8. O-O {[%emt 0:00:46]} O-O {[%emt 0:00:11]} 9. Ng3 {[%emt 0:14:18]} b5 10. f4 Nbd7 {[%emt 0:21:09]} 11. Nf5 {[%emt 0:04:01]} Bb7 {[%emt 0:02:01]} 12. Qf3 {[%emt 0:04:25]} b4 {[%emt 0:10:05]} 13. Ne2 {[%emt 0:15:24]} d5 {[%emt 0:02:00]} 14. exd5 Bc5+ 15. Kh1 {[%emt 0:03:07]} e4 {[%emt 0:00:45]} 16. Bxe4 {[%emt 0:02:01]} Nxe4 {[%emt 0:00:15]} 17. Qxe4 {[%emt 0:00:05]} Nf6 {[%emt 0:04:25]} 18. Qd3 {[%emt 0:01:13]} Bxd5 {[%emt 0:05:38]} 19. Be3 {[%emt 0:02:58]} Qc7 {[%emt 0:08:09]} 20. Neg3 {[%emt 0:11:56]} Rfd8 21. Qe2 {[%emt 0:00:39]} Re8 {[%emt 0:00:44]} 22. Qd2 Rad8 {[%emt 0:04:54]} 23. Bxc5 {[%emt 0:04:12]} Qxc5 {[%emt 0:02:16]} 24. Rad1 {[%emt 0:14:11]} g6 {[%emt 0:00:57]} 25. Nd4 {[%emt 0:06:50]} Ng4 {[%emt 0:00:18]} 26. Rfe1 {[%emt 0:06:03]} Rxe1+ 27. Rxe1 {[%emt 0:00:53]} Bxg2+ {[%emt 0:01:57]} 28. Qxg2 {[%emt 0:00:19]} Qxd4 {[%emt 0:02:25]} 29. Qf3 {[%emt 0:00:07]} Nf6 {[%emt 0:04:59]} 30. c3 bxc3 31. Qxc3 {[%emt 0:02:52]} Qxc3 {[%emt 0:02:00]} 32. bxc3 {[%emt 0:01:21]} Rd2 33. Re2 Rd1+ {[%emt 0:03:14]} 34. Kg2 {[%emt 0:00:32]} Rc1 {[%emt 0:00:11]} 35. Rd2 {[%emt 0:02:50]} Rxc3 36. f5 Kg7 {[%emt 0:06:00]} 37. Ne2 {[%emt 0:02:32]} Ra3 {[%emt 0:00:20]} 38. Ng3 {[%emt 0:00:04]} g5 39. Ne2 {[%emt 0:01:18]} Ra5 {[%emt 0:08:06]} 40. Ng3 {[%emt 0:00:00]} h5 {[%emt 0:00:00]} 41. Rf2 {[%emt 0:01:12]} h4 {[%emt 0:01:43]} 0-1

[Event "elllobregat Open-A 2019"]
[Site "El Prat de Llobregat"]
[Date "2019.12.05"]
[Round "3.3"]
[White "Gagare, Shardul"]
[Black "Alonso Rosell, Alvar"]
[Result "0-1"]
[ECO "A37"]
[WhiteElo "2468"]
[BlackElo "2548"]
[Annotator "ChessBase"]
[PlyCount "76"]
[EventDate "2019.12.03"]
[EventType "swiss"]
[EventCountry "ESP"]
[SourceTitle "playchess.com"]
[Source "ChessBase"]
[SourceQuality "1"]
[TimeControl "40/5400+30:1800+30"]

1. Nf3 {[%emt 0:00:00]} c5 {[%emt 0:15:56]} 2. c4 {[%emt 0:00:00]} Nc6 {[%emt 0:00:06]} 3. g3 {[%emt 0:00:49]} g6 {[%emt 0:00:05]} 4. Bg2 {[%emt 0:00:04]} Bg7 {[%emt 0:00:03]} 5. Nc3 {[%emt 0:00:31]} e5 {[%emt 0:00:07]} 6. O-O {[%emt 0:01:16]} d6 {[%emt 0:04:13]} 7. a3 {[%emt 0:00:58]} Nge7 {[%emt 0:06:44]} 8. Rb1 {[%emt 0:00:19]} O-O {[%emt 0:00:59]} 9. d3 {[%emt 0:02:02]} a5 {[%emt 0:03:12]} 10. Ne1 {[%emt 0:02:17]} Be6 {[%emt 0:00:32]} 11. Nc2 {[%emt 0:01:23]} d5 {[%emt 0:00:40]} 12. cxd5 {[%emt 0:00:08]} Nxd5 13. Ne3 {[%emt 0:00:08]} Nde7 {[%emt 0:00:10]} 14. Nc4 {[%emt 0:00:35]} Rb8 {[%emt 0:00:04]} 15. Bg5 {[%emt 0:16:35]} f6 {[%emt 0:08:16]} 16. Be3 {[%emt 0:00:52]} b6 {[%emt 0:00:07]} 17. Qa4 {[%emt 0:08:24]} Nd4 {[%emt 0:19:04]} 18. Bxd4 {[%emt 0:01:30]} exd4 {[%emt 0:02:53]} 19. Nb5 {[%emt 0:00:07]} Nd5 {[%emt 0:04:02]} 20. Qd1 {[%emt 0:31:52]} Qd7 {[%emt 0:02:43]} 21. a4 {[%emt 0:03:24]} f5 {[%emt 0:01:03]} 22. Qd2 f4 {[%emt 0:06:51]} 23. Ncd6 {[%emt 0:03:37]} h5 {[%emt 0:01:24]} 24. Ne4 {[%emt 0:00:58]} Bh6 {[%emt 0:01:14]} 25. Qc2 {[%emt 0:05:29]} fxg3 {[%emt 0:04:09]} 26. hxg3 {[%emt 0:00:13]} h4 {[%emt 0:00:48]} 27. Na3 {[%emt 0:09:16]} hxg3 28. Nc4 {[%emt 0:03:31]} gxf2+ {[%emt 0:06:34]} 29. Rxf2 {[%emt 0:00:10]} Ne3 30. Nxe3 {[%emt 0:06:43]} Bxe3 {[%emt 0:01:20]} 31. Rbf1 g5 {[%emt 0:03:06]} 32. Bh1 {[%emt 0:02:16]} Bd5 {[%emt 0:03:34]} 33. Bf3 g4 {[%emt 0:02:56]} 34. Kh1 {[%emt 0:00:59]} Bxf2 {[%emt 0:00:51]} 35. Rxf2 {[%emt 0:00:08]} gxf3 {[%emt 0:00:28]} 36. exf3 {[%emt 0:00:09]} Qh3+ {[%emt 0:00:30]} 37. Kg1 {[%emt 0:00:04]} Bxe4 {[%emt 0:00:24]} 38. Rg2+ {[%emt 0:01:03]} Kh8 {[%emt 0:00:25]} 0-1

[Event "elllobregat Open-A 2019"]
[Site "El Prat de Llobregat"]
[Date "2019.12.05"]
[Round "3.4"]
[White "Kjartansson, Gudmundur"]
[Black "Gukesh D"]
[Result "1-0"]
[ECO "B46"]
[WhiteElo "2448"]
[BlackElo "2547"]
[Annotator "ChessBase"]
[PlyCount "61"]
[EventDate "2019.12.03"]
[EventType "swiss"]
[EventCountry "ESP"]
[SourceTitle "playchess.com"]
[Source "ChessBase"]
[SourceQuality "1"]
[TimeControl "40/5400+30:1800+30"]

1. e4 {[%emt 0:00:00]} c5 {[%emt 0:00:15]} 2. Nf3 {[%emt 0:00:00]} Nc6 {[%emt 0:00:52]} 3. d4 {[%emt 0:00:04]} cxd4 {[%emt 0:00:09]} 4. Nxd4 {[%emt 0:00:04]} e6 {[%emt 0:03:55]} 5. Nc3 {[%emt 0:00:13]} a6 {[%emt 0:01:30]} 6. Nxc6 {[%emt 0:00:29]} bxc6 {[%emt 0:00:12]} 7. Bd3 e5 {[%emt 0:08:26]} 8. O-O {[%emt 0:01:27]} Bc5 {[%emt 0:04:15]} 9. Kh1 {[%emt 0:03:16]} Nf6 {[%emt 0:20:31]} 10. f4 d6 {[%emt 0:19:58]} 11. Qe1 {[%emt 0:28:12]} Ng4 12. h3 {[%emt 0:18:32]} h5 {[%emt 0:01:01]} 13. fxe5 Nxe5 14. Qg3 {[%emt 0:06:35]} Bg4 {[%emt 0:01:54]} 15. Be3 {[%emt 0:04:07]} h4 16. Qf2 {[%emt 0:00:44]} Bxe3 {[%emt 0:05:47]} 17. Qxe3 {[%emt 0:00:06]} Be6 {[%emt 0:04:30]} 18. Ne2 {[%emt 0:00:16]} O-O {[%emt 0:01:01]} 19. Nd4 {[%emt 0:00:51]} Qe7 {[%emt 0:05:50]} 20. Nf3 a5 21. Qd4 {[%emt 0:12:08]} c5 {[%emt 0:05:41]} 22. Qc3 {[%emt 0:01:25]} Nxf3 23. Rxf3 {[%emt 0:00:10]} Rfb8 {[%emt 0:04:01]} 24. b3 f6 25. Raf1 {[%emt 0:12:30]} Bf7 {[%emt 0:09:15]} 26. Qe1 {[%emt 0:01:20]} c4 27. bxc4 Rc8 {[%emt 0:03:50]} 28. Qxh4 {[%emt 0:00:46]} Bxc4 29. e5 {[%emt 0:00:12]} Bxd3 {[%emt 0:00:52]} 30. exf6 {[%emt 0:00:12]} Rc4 {[%emt 0:00:41]} 31. fxe7 1-0

[Event "elllobregat Open-A 2019"]
[Site "El Prat de Llobregat"]
[Date "2019.12.05"]
[Round "3.5"]
[White "Low, Zhen Yu Cyrus"]
[Black "Erigaisi Arjun"]
[Result "0-1"]
[ECO "C55"]
[WhiteElo "2420"]
[BlackElo "2544"]
[Annotator "ChessBase"]
[PlyCount "86"]
[EventDate "2019.12.03"]
[EventType "swiss"]
[EventCountry "ESP"]
[SourceTitle "playchess.com"]
[Source "ChessBase"]
[SourceQuality "1"]
[TimeControl "40/5400+30:1800+30"]

1. e4 {[%emt 0:00:00]} e5 {[%emt 0:00:09]} 2. Nf3 {[%emt 0:00:00]} Nc6 {[%emt 0:00:06]} 3. Bc4 {[%emt 0:00:00]} Nf6 {[%emt 0:00:06]} 4. d3 {[%emt 0:00:00]} h6 5. O-O {[%emt 0:00:55]} d6 {[%emt 0:00:14]} 6. a4 {[%emt 0:01:30]} g5 {[%emt 0:00:21]} 7. Re1 {[%emt 0:06:09]} Bg7 {[%emt 0:00:12]} 8. c3 {[%emt 0:00:12]} O-O 9. h4 {[%emt 0:09:30]} gxh4 {[%emt 0:07:16]} 10. Nxh4 {[%emt 0:10:09]} Bg4 {[%emt 0:12:35]} 11. Nf3 {[%emt 0:04:30]} Nh7 {[%emt 0:03:12]} 12. Na3 {[%emt 0:08:15]} Kh8 {[%emt 0:00:33]} 13. Nc2 {[%emt 0:07:12]} f5 {[%emt 0:01:26]} 14. Be6 {[%emt 0:01:13]} Bxf3 {[%emt 0:09:46]} 15. gxf3 {[%emt 0:03:11]} fxe4 {[%emt 0:02:42]} 16. fxe4 {[%emt 0:11:44]} Qh4 {[%emt 0:28:35]} 17. Bf5 {[%emt 0:06:53]} Bf6 {[%emt 0:02:56]} 18. Qf3 {[%emt 0:06:01]} Ne7 19. Ne3 {[%emt 0:00:27]} Rg8+ {[%emt 0:02:09]} 20. Kf1 Ng5 21. Qg4 {[%emt 0:09:49]} Nxf5 {[%emt 0:03:02]} 22. exf5 {[%emt 0:00:03]} Nh3 {[%emt 0:00:00]} 23. Qxh4 {[%emt 0:01:29]} Bxh4 {[%emt 0:00:39]} 24. Nd1 {[%emt 0:03:25]} Kh7 {[%emt 0:01:07]} 25. Ke2 {[%emt 0:01:30]} Ng1+ {[%emt 0:04:14]} 26. Kf1 {[%emt 0:02:38]} Nf3 {[%emt 0:03:43]} 27. Re4 Raf8 {[%emt 0:00:18]} 28. Ne3 {[%emt 0:00:48]} d5 {[%emt 0:01:44]} 29. Nxd5 {[%emt 0:01:32]} Rxf5 {[%emt 0:03:21]} 30. Ke2 Rg1 31. d4 {[%emt 0:02:39]} Re1+ {[%emt 0:01:02]} 32. Kd3 {[%emt 0:00:06]} exd4 33. Rxe1 {[%emt 0:03:29]} Nxe1+ {[%emt 0:00:12]} 34. Ke4 {[%emt 0:00:10]} Rxf2 {[%emt 0:00:54]} 35. Bf4 {[%emt 0:00:56]} c6 {[%emt 0:01:14]} 36. Nb4 {[%emt 0:00:55]} dxc3 37. bxc3 {[%emt 0:00:37]} a5 {[%emt 0:01:06]} 38. Rxe1 Rxf4+ {[%emt 0:00:11]} 39. Kxf4 {[%emt 0:00:38]} Bxe1 {[%emt 0:00:00]} 40. Na2 {[%emt 0:00:00]} h5 {[%emt 0:00:00]} 41. c4 {[%emt 0:01:28]} Kg6 {[%emt 0:02:46]} 42. Ke4 Bd2 {[%emt 0:00:09]} 43. Kd3 {[%emt 0:00:38]} h4 0-1

[Event "elllobregat Open-A 2019"]
[Site "El Prat de Llobregat"]
[Date "2019.12.05"]
[Round "3.6"]
[White "Raja Rithvik R"]
[Black "Arizmendi Martinez, Julen Luis"]
[Result "1/2-1/2"]
[ECO "A56"]
[WhiteElo "2381"]
[BlackElo "2511"]
[Annotator "ChessBase"]
[PlyCount "41"]
[EventDate "2019.12.03"]
[EventType "swiss"]
[EventCountry "ESP"]
[SourceTitle "playchess.com"]
[Source "ChessBase"]
[SourceQuality "1"]
[TimeControl "40/5400+30:1800+30"]

1. d4 {[%emt 0:00:38]} Nf6 {[%emt 0:06:29]} 2. c4 {[%emt 0:00:22]} c5 {[%emt 0:00:16]} 3. d5 g6 4. Nc3 {[%emt 0:00:31]} Bg7 {[%emt 0:01:50]} 5. e4 d6 {[%emt 0:00:13]} 6. Bd3 {[%emt 0:03:17]} O-O 7. h3 {[%emt 0:05:45]} e6 {[%emt 0:01:49]} 8. Nf3 {[%emt 0:00:13]} Na6 9. O-O {[%emt 0:01:57]} Nc7 {[%emt 0:00:54]} 10. Re1 {[%emt 0:19:53]} Rb8 11. dxe6 {[%emt 0:01:41]} Nxe6 {[%emt 0:08:08]} 12. Be3 {[%emt 0:19:26]} a6 13. Qd2 {[%emt 0:00:34]} b5 {[%emt 0:28:57]} 14. cxb5 axb5 15. Nxb5 {[%emt 0:01:00]} Nxe4 {[%emt 0:00:25]} 16. Bxe4 {[%emt 0:00:06]} Rxb5 {[%emt 0:00:06]} 17. Rab1 c4 18. Nd4 {[%emt 0:08:14]} Bxd4 {[%emt 0:04:51]} 19. Bxd4 {[%emt 0:02:00]} d5 20. Bc2 {[%emt 0:00:07]} Nxd4 {[%emt 0:13:00]} 21. Qxd4 1/2-1/2

[Event "elllobregat Open-A 2019"]
[Site "El Prat de Llobregat"]
[Date "2019.12.05"]
[Round "3.10"]
[White "Puranik, Abhimanyu"]
[Black "Mascaro March, Pedro"]
[Result "1-0"]
[ECO "B19"]
[WhiteElo "2580"]
[BlackElo "2381"]
[Annotator "ChessBase"]
[PlyCount "51"]
[EventDate "2019.12.03"]
[EventType "swiss"]
[EventCountry "ESP"]
[SourceTitle "playchess.com"]
[Source "ChessBase"]
[SourceQuality "1"]
[TimeControl "40/5400+30:1800+30"]

1. e4 {[%emt 0:00:00]} c6 {[%emt 0:04:01]} 2. d4 {[%emt 0:00:02]} d5 {[%emt 0:00:06]} 3. Nd2 {[%emt 0:00:04]} dxe4 {[%emt 0:00:04]} 4. Nxe4 {[%emt 0:00:03]} Bf5 {[%emt 0:02:13]} 5. Ng3 {[%emt 0:00:08]} Bg6 {[%emt 0:00:03]} 6. h4 {[%emt 0:00:40]} h6 {[%emt 0:00:09]} 7. Nf3 {[%emt 0:00:06]} Nd7 {[%emt 0:00:14]} 8. h5 Bh7 {[%emt 0:00:04]} 9. Bd3 {[%emt 0:00:29]} Bxd3 {[%emt 0:00:05]} 10. Qxd3 {[%emt 0:00:03]} e6 {[%emt 0:00:24]} 11. Bd2 {[%emt 0:00:44]} Ngf6 {[%emt 0:01:42]} 12. O-O-O {[%emt 0:00:26]} Qc7 {[%emt 0:01:09]} 13. Ne4 {[%emt 0:04:42]} O-O-O {[%emt 0:03:56]} 14. g3 {[%emt 0:10:11]} Nxe4 {[%emt 0:00:28]} 15. Qxe4 {[%emt 0:00:04]} Nf6 {[%emt 0:00:50]} 16. Qe2 {[%emt 0:00:05]} Bd6 {[%emt 0:01:24]} 17. c4 {[%emt 0:03:47]} c5 {[%emt 0:06:45]} 18. Bc3 {[%emt 0:00:11]} Rhe8 {[%emt 0:09:41]} 19. Kb1 {[%emt 0:07:42]} Qc6 {[%emt 0:15:31]} 20. Rh4 {[%emt 0:02:56]} Qc7 {[%emt 0:11:43]} 21. Rc1 {[%emt 0:05:57]} Kb8 {[%emt 0:03:14]} 22. dxc5 Qxc5 {[%emt 0:14:59]} 23. Ne5 {[%emt 0:01:25]} Qc7 24. c5 {[%emt 0:05:55]} Bf8 {[%emt 0:09:28]} 25. c6 {[%emt 0:02:44]} b6 {[%emt 0:02:13]} 26. Nxf7 {[%emt 0:00:40]} 1-0

[Event "elllobregat Open-A 2019"]
[Site "El Prat de Llobregat"]
[Date "2019.12.05"]
[Round "3.11"]
[White "Harsha Bharathakoti"]
[Black "Sankalp Gupta"]
[Result "1/2-1/2"]
[ECO "B34"]
[WhiteElo "2523"]
[BlackElo "2365"]
[Annotator "ChessBase"]
[PlyCount "21"]
[EventDate "2019.12.03"]
[EventType "swiss"]
[EventCountry "ESP"]
[SourceTitle "playchess.com"]
[Source "ChessBase"]
[SourceQuality "1"]
[TimeControl "40/5400+30:1800+30"]

1. e4 {[%emt 0:00:10]} c5 {[%emt 0:00:00]} 2. Nf3 {[%emt 0:00:34]} Nc6 {[%emt 0:01:54]} 3. Nc3 {[%emt 0:01:22]} g6 {[%emt 0:02:52]} 4. d4 {[%emt 0:04:24]} cxd4 {[%emt 0:00:03]} 5. Nxd4 {[%emt 0:00:08]} Bg7 {[%emt 0:00:05]} 6. Be3 {[%emt 0:00:21]} Nf6 {[%emt 0:00:10]} 7. f3 {[%emt 0:05:02]} O-O {[%emt 0:01:02]} 8. Qd2 {[%emt 0:01:16]} d5 {[%emt 0:02:16]} 9. O-O-O {[%emt 0:09:45]} Nxd4 {[%emt 0:05:40]} 10. Bxd4 {[%emt 0:14:01]} dxe4 {[%emt 0:00:17]} 11. Nxe4 {[%emt 0:28:38]} 1/2-1/2